bitfinex/quotes_BTCUSD_20220202
["timestamp","ask_amount","ask_price","bid_price","bid_amount"]
[1643842481155,2.11199548,37092.0,37091.0,0.10056865]
[1643842481352,2.11199548,37092.0,37091.0,0.10068438]
[1643842481755,1.86199548,37092.0,37091.0,0.10068438]
[1643842482052,1.86199548,37092.0,37091.0,0.10056865]
[1643842482453,1.86199548,37092.0,37091.0,0.10068438]
[1643842483056,1.86199548,37092.0,37091.0,0.10056865]
[1643842483723,1.86199548,37092.0,37091.0,0.10068438]
[1643842483919,2.11199548,37092.0,37091.0,0.10068438]
[1643842484322,2.11199548,37092.0,37091.0,0.10056865]
[1643842484819,2.11199548,37092.0,37091.0,0.10068438]
[1643842485020,1.86199548,37092.0,37091.0,0.10068438]
[1643842485620,1.86199548,37092.0,37091.0,0.10056865]
[1643842486325,1.86199548,37092.0,37084.0,0.00310428]
[1643842486326,0.10281143,37090.0,37084.0,0.00310428]
[1643842486526,0.10281143,37090.0,37071.0,0.01]
[1643842486527,0.5176,37085.0,37071.0,0.01]
[1643842486724,0.5176,37085.0,37065.0,0.05]
[1643842486725,1.5,37083.0,37065.0,0.05]
[1643842486925,0.7054531,37082.0,37060.0,0.00011578]
[1643842487122,1.98146421,37082.0,37060.0,0.00011578]
[1643842487323,1.001,37081.0,37065.0,0.002]
[1643842487552,1.001,37081.0,37065.0,0.001]
[1643842487553,0.5176,37066.0,37065.0,0.001]
[1643842487753,1.50857626,37066.0,37054.0,0.00011578]
[1643842487955,1.50857626,37066.0,37041.0,0.01]
[1643842487956,0.05,37062.0,37041.0,0.01]
[1643842488156,0.07418,37056.0,37041.0,0.01]
[1643842488358,0.51603036,37042.0,37041.0,0.01]
[1643842488553,0.245,37041.0,37033.0,0.0426]
[1643842488755,0.504667,37040.0,37027.0,0.005]
[1643842488959,0.504667,37040.0,37021.0,0.01]
[1643842488960,0.5,37037.0,37024.0,0.05]
[1643842489154,0.5,37037.0,37035.0,0.00077356]
[1643842489155,0.454667,37036.0,37035.0,0.00077356]
[1643842489355,0.554667,37036.0,37035.0,0.00077356]
[1643842489558,1.24921821,37036.0,37035.0,0.00077356]
[1643842489754,1.31674821,37036.0,37026.0,0.02113318]
[1643842489954,1.81674821,37036.0,37026.0,0.00113318]
[1643842490156,1.81674821,37036.0,37026.0,0.25113318]
[1643842490157,0.019,37027.0,37026.0,0.25113318]
[1643842490656,0.017,37027.0,37026.0,0.25113318]
[1643842490854,0.016,37027.0,37026.0,0.99156683]
[1643842491069,0.516,37027.0,37026.0,0.74113318]
[1643842491301,0.566,37027.0,37026.0,0.49113318]
[1643842491502,0.516,37027.0,37015.0,0.05]
[1643842491701,0.05,37026.0,37015.0,0.05]
[1643842492105,0.55,37026.0,37024.0,0.26730124]
[1643842492304,0.55,37026.0,37015.0,0.05]
[1643842492802,0.55,37026.0,37023.0,0.00077077]
[1643842493601,0.55,37026.0,37017.0,0.00824532]
[1643842493901,0.55,37026.0,37023.0,0.00077078]
[1643842494302,0.55,37026.0,37010.0,0.6426]
[1643842494506,0.19264271,37020.0,37015.0,0.25408812]
[1643842494705,0.19264271,37020.0,37016.0,0.350567]
[1643842494951,0.5,37026.0,37016.0,0.450567]
[1643842495751,0.91024244,37033.0,37016.0,0.450567]
[1643842495954,0.91024244,37033.0,37016.0,0.1]
[1643842496153,0.22639567,37024.0,37015.0,0.40408812]
[1643842496358,0.22639567,37024.0,37016.0,0.350567]
[1643842496554,0.00042954,37026.0,37016.0,0.350567]
[1643842496756,0.00042954,37026.0,37016.0,0.450567]
[1643842497357,0.29898514,37032.0,37016.0,0.450567]
[1643842497556,0.29898514,37032.0,37016.0,0.16752635]
[1643842497557,0.00076784,37023.0,37016.0,0.16752635]
[1643842497754,0.00076784,37023.0,37017.0,0.350567]
[1643842497955,0.00020509,37020.0,37018.0,0.26450657]
[1643842498253,0.00020509,37020.0,37019.0,0.350567]
[1643842499107,0.19199499,37028.0,37020.0,0.5]
[1643842499308,1.1040153,37027.0,37021.0,0.350567]
[1643842499506,1.1540153,37027.0,37020.0,0.5]
[1643842500111,1.1540153,37027.0,37020.0,0.25]
[1643842500310,1.38530564,37027.0,37020.0,0.25]
[1643842500707,2.3974138,37025.0,37020.0,0.25]
[1643842500907,1.14713733,37024.0,37018.0,0.26450657]
[1643842501108,1.19713733,37024.0,37018.0,0.26450657]
[1643842501310,1.19713733,37024.0,37016.0,0.13505335]
[1643842501511,1.19713733,37024.0,37014.0,0.07342724]
[1643842502111,1.19713733,37024.0,37014.0,0.0541]
[1643842502457,1.19713733,37024.0,37017.0,0.0003395]
[1643842503258,1.19713733,37024.0,37014.0,0.0541]
[1643842503456,0.22720545,37021.0,37017.0,0.00076853]
[1643842503860,0.27720545,37021.0,37017.0,0.00076853]
[1643842504460,0.27720545,37021.0,37014.0,0.00011562]
[1643842504658,0.27720545,37021.0,37013.0,0.98216]
[1643842504659,0.27720545,37021.0,37017.0,0.00076851]
[1643842504863,0.05,37021.0,37017.0,0.00076851]
[1643842505161,0.44818968,37023.0,37017.0,0.00076851]
[1643842505560,0.29272553,37022.0,37017.0,0.00076851]
[1643842505759,0.44742129,37023.0,37014.0,0.00011562]
[1643842505960,0.25058168,37018.0,37017.0,0.00076852]
[1643842506212,0.4481897,37023.0,37017.0,0.00076852]
[1643842506812,0.44742129,37023.0,37014.0,0.00011562]
[1643842507013,0.44742129,37023.0,37017.0,0.00076852]
[1643842507217,0.26639028,37022.0,37017.0,0.00076852]
[1643842507615,0.4481897,37023.0,37018.0,0.20451959]
[1643842507817,0.4481897,37023.0,37017.0,0.00076852]
[1643842508016,0.4481897,37023.0,37014.0,0.00011562]
[1643842508017,6.052e-05,37020.0,37014.0,0.00011562]
[1643842508214,0.0002421,37021.0,37020.0,2.66e-06]
[1643842508415,0.0002421,37021.0,37017.0,0.00076852]
[1643842509218,0.0001821,37021.0,37016.0,0.26929785]
[1643842509418,0.0001821,37021.0,37017.0,0.00076851]
[1643842509619,0.0001821,37021.0,37017.0,0.00088413]
[1643842509820,0.5001821,37021.0,37017.0,0.00088413]
[1643842510248,0.05,37020.0,37017.0,0.00076851]
[1643842510450,0.05,37020.0,37017.0,0.0541]
[1643842510650,0.05,37020.0,37019.0,0.26408014]
[1643842511452,0.55,37020.0,37019.0,0.26408014]
[1643842511653,0.55,37020.0,37018.0,0.00011562]
[1643842511852,0.55,37020.0,37017.0,0.0541]
[1643842511853,0.32432129,37019.0,37017.0,0.05486852]
[1643842512855,0.32432129,37019.0,37017.0,0.05421562]
[1643842513455,0.32423977,37019.0,37018.0,0.600567]
[1643842513697,0.32423977,37019.0,37018.0,0.60068262]
[1643842514300,0.32423977,37019.0,37018.0,0.35068262]
[1643842514503,0.77207841,37019.0,37018.0,0.00011562]
[1643842514700,0.77207841,37019.0,37017.0,0.00076852]
[1643842514701,1.32480677,37019.0,37017.0,0.00076852]
[1643842514900,0.600567,37018.0,37017.0,0.00076852]
[1643842515100,0.900567,37018.0,37017.0,0.00076852]
[1643842515302,1.29840564,37018.0,37011.0,0.00011562]
[1643842515502,0.51696576,37017.0,37016.0,0.00076853]
[1643842515703,1.41753276,37017.0,37016.0,0.00076853]
[1643842515902,1.51753276,37017.0,37016.0,0.00076853]
[1643842516103,2.42521713,37017.0,37016.0,0.00076853]
[1643842516501,2.42521713,37017.0,37011.0,0.00011562]
[1643842516502,2.47931713,37017.0,37011.0,0.00011562]
[1643842516701,0.400567,37016.0,37015.0,0.00076854]
[1643842516901,0.7377616,37016.0,37015.0,0.00076854]
[1643842517103,1.2877616,37016.0,37015.0,0.00076854]
[1643842517301,1.7877616,37016.0,37015.0,0.00076854]
[1643842517752,1.7877616,37016.0,37010.0,0.00011562]
[1643842517950,0.38188403,37015.0,37014.0,0.00076854]
[1643842518150,0.91554563,37015.0,37014.0,0.00076854]
[1643842518352,1.41853985,37015.0,37014.0,0.00076854]
[1643842518557,1.47263985,37015.0,37014.0,0.00076854]
[1643842519050,0.067575,37013.0,37009.0,0.00011562]
[1643842519248,0.067575,37013.0,37007.0,0.02249888]
[1643842519249,1.0,37011.0,37008.0,0.00011562]
[1643842519452,0.351135,37010.0,37008.0,0.00011562]
[1643842519650,0.401135,37010.0,37008.0,0.00011562]
[1643842519851,0.551135,37010.0,37007.0,0.02249888]
[1643842520050,0.24081926,37009.0,37007.0,0.0194242]
[1643842520251,0.065637,37008.0,37007.0,0.02019281]
[1643842521312,0.065637,37008.0,37007.0,0.0194242]
[1643842521511,0.565637,37008.0,37007.0,0.0194242]
[1643842521712,0.565637,37008.0,37007.0,0.01953982]
[1643842521913,0.665637,37008.0,37007.0,0.01953982]
[1643842522714,0.665637,37008.0,37007.0,0.0194242]
[1643842523313,0.665637,37008.0,37007.0,0.01953982]
[1643842523515,0.96434231,37008.0,37007.0,0.01953982]
[1643842523916,0.96434231,37008.0,37007.0,0.0194242]
[1643842524514,0.96434231,37008.0,37007.0,0.01953982]
[1643842524965,0.665637,37008.0,37007.0,0.01953982]
[1643842525161,0.84879599,37008.0,37007.0,0.0194242]
[1643842525758,0.84879599,37008.0,37007.0,0.01867184]
[1643842525961,0.34879599,37008.0,37007.0,0.01867184]
[1643842526360,0.34879599,37008.0,37007.0,0.01855622]
[1643842526361,0.165637,37008.0,37007.0,0.01855622]
[1643842526959,0.165637,37008.0,37007.0,0.01867184]
[1643842527362,0.665637,37008.0,37007.0,0.01867184]
[1643842527563,0.565637,37008.0,37007.0,0.01855622]
[1643842527764,0.84879599,37008.0,37007.0,0.01855622]
[1643842528165,0.78315899,37008.0,37007.0,0.01867184]
[1643842528364,0.6,37008.0,37007.0,0.01867184]
[1643842528809,0.6,37008.0,37007.0,0.01855622]
[1643842529211,0.951135,37008.0,37007.0,0.01855622]
[1643842529409,0.951135,37008.0,37007.0,0.26867184]
[1643842529410,0.5,37008.0,37007.0,0.26867184]
[1643842529608,0.5,37008.0,37007.0,0.32277184]
[1643842529810,0.5001825,37009.0,37007.0,0.32277184]
[1643842530010,0.0001825,37009.0,37007.0,0.32265622]
[1643842530609,0.0001825,37009.0,37007.0,0.32277184]
[1643842531211,0.0001825,37009.0,37007.0,0.32265622]
[1643842531414,0.0001825,37009.0,37008.0,0.351135]
[1643842531609,0.0001825,37009.0,37008.0,0.405235]
[1643842531808,0.0001825,37009.0,37008.0,0.72647803]
[1643842532009,0.0001825,37009.0,37008.0,0.71645635]
[1643842532469,0.22443192,37012.0,37008.0,1.39265635]
[1643842532470,0.14831442,37012.0,37008.0,1.39265635]
[1643842532669,0.51921096,37021.0,37010.0,0.6762]
[1643842532869,0.51921096,37021.0,37011.0,0.77367014]
[1643842533069,0.51921096,37021.0,37011.0,0.84120614]
[1643842533271,0.01921096,37021.0,37019.0,0.20545784]
[1643842533469,0.01921096,37021.0,37020.0,0.3041]
[1643842534071,0.86701019,37031.0,37020.0,0.3041]
[1643842534269,0.05,37028.0,37020.0,0.0541]
[1643842534468,0.05,37028.0,37020.0,0.05421562]
[1643842534469,0.25681222,37026.0,37020.0,0.05421562]
[1643842534671,0.25757797,37026.0,37020.0,0.05421562]
[1643842534872,0.35757797,37026.0,37020.0,0.05421562]
[1643842535070,0.45757797,37026.0,37020.0,0.05421562]
[1643842535673,0.45681222,37026.0,37020.0,0.05421562]
[1643842535871,0.2,37026.0,37020.0,0.05421562]
[1643842536071,0.00076576,37025.0,37020.0,0.05421562]
[1643842536306,0.00076576,37025.0,37020.0,0.04921562]
[1643842536904,0.22502699,37027.0,37020.0,0.04921562]
[1643842537203,0.00076576,37024.0,37020.0,0.04921562]
[1643842538104,0.00014611,37025.0,37020.0,0.04921562]
[1643842538304,0.00076576,37024.0,37020.0,0.04921562]
[1643842539307,0.00014611,37025.0,37020.0,0.04921562]
[1643842539506,0.35190076,37024.0,37018.0,0.00011562]
[1643842539705,0.45190076,37024.0,37018.0,0.00011562]
[1643842539948,0.55190076,37024.0,37018.0,0.00011562]
[1643842540150,0.20076576,37024.0,37017.0,0.0007659]
[1643842540355,0.20076576,37024.0,37017.0,0.23393395]
[1643842540550,0.2,37024.0,37017.0,0.23316805]
[1643842540750,0.00076577,37023.0,37017.0,0.23393394]
[1643842541349,0.05076577,37023.0,37017.0,0.23393394]
[1643842541750,0.00014611,37025.0,37017.0,0.23316805]
[1643842541954,0.00076576,37023.0,37017.0,0.23393393]
[1643842542952,0.00014611,37025.0,37017.0,0.23316805]
[1643842543153,0.00076576,37023.0,37017.0,0.23393393]
[1643842543553,0.25153861,37021.0,37017.0,0.00076588]
[1643842543810,0.30153861,37021.0,37017.0,0.00076588]
[1643842544010,0.351135,37020.0,37017.0,0.00076588]
[1643842544211,0.351135,37020.0,37012.0,0.00011562]
[1643842544411,0.1,37020.0,37017.0,0.00076587]
[1643842545311,0.351135,37019.0,37012.0,0.00011562]
[1643842545511,0.45153861,37021.0,37017.0,0.00076587]
[1643842545711,0.15,37019.0,37017.0,0.00076587]
[1643842545910,0.2851424,37020.0,37017.0,0.00076587]
[1643842546111,0.351135,37019.0,37017.0,0.00076587]
[1643842546314,0.1,37019.0,37017.0,0.00076587]
[1643842546511,0.315637,37018.0,37012.0,0.00011562]
[1643842546711,0.15,37019.0,37016.0,0.00076588]
[1643842546910,0.351135,37018.0,37016.0,0.00076588]
[1643842547111,0.15,37019.0,37016.0,0.00076588]
[1643842547314,0.351135,37018.0,37016.0,0.00076588]
[1643842547568,0.15,37019.0,37016.0,0.00076588]
[1643842547769,0.15,37019.0,37015.0,0.00011562]
[1643842547968,0.15,37019.0,37015.0,0.00088151]
[1643842548167,0.2,37019.0,37015.0,0.00088151]
[1643842548368,0.15,37019.0,37015.0,0.00076589]
[1643842548567,0.2,37019.0,37015.0,0.00076589]
[1643842548766,0.3225558,37019.0,37015.0,0.00076589]
[1643842548967,0.05,37019.0,37014.0,0.00011562]
[1643842549168,0.2,37019.0,37015.0,0.00076589]
[1643842549368,0.15,37019.0,37015.0,0.00076589]
[1643842549570,0.2,37019.0,37015.0,0.00076589]
[1643842550073,0.15,37019.0,37014.0,0.00011562]
[1643842550271,0.15,37019.0,37013.0,0.19540361]
[1643842550272,0.05,37019.0,37015.0,0.00076589]
[1643842550569,0.43898907,37020.0,37015.0,0.00076589]
[1643842550772,0.43898907,37020.0,37011.0,0.00011562]
[1643842550773,0.04937971,37015.0,37011.0,0.00011562]
[1643842550969,0.04937971,37015.0,37014.0,0.00011562]
[1643842551204,0.33884347,37020.0,37014.0,0.00011562]
[1643842551205,0.38884347,37020.0,37014.0,0.00011562]
[1643842551605,0.38884347,37020.0,37009.0,0.01755622]
[1643842551606,0.28884347,37020.0,37009.0,0.08509822]
[1643842551804,0.38884347,37020.0,37013.0,0.22780456]
[1643842552004,0.38884347,37020.0,37009.0,0.08509822]
[1643842552206,0.43884347,37020.0,37009.0,0.08509822]
[1643842553011,0.00014554,37014.0,37013.0,0.26154935]
[1643842553208,0.43884347,37020.0,37013.0,0.26154935]
[1643842553209,0.2,37020.0,37013.0,0.26154935]
[1643842553409,0.1,37020.0,37013.0,0.26154935]
[1643842553611,0.47139313,37024.0,37013.0,0.26154935]
[1643842554010,0.00076455,37020.0,37013.0,0.26231403]
[1643842554213,0.30033194,37020.0,37013.0,0.26231403]
[1643842554412,0.40033194,37020.0,37013.0,0.26231403]
[1643842554614,0.45033194,37020.0,37013.0,0.26231403]
[1643842555049,0.44956739,37020.0,37013.0,0.26154935]
[1643842555355,0.45033194,37020.0,37013.0,0.26231403]
[1643842556150,0.45033194,37020.0,37013.0,0.26154935]
[1643842556151,0.2,37020.0,37013.0,0.26154935]
[1643842556349,0.10076455,37020.0,37013.0,0.26231403]
[1643842556549,0.05076455,37020.0,37013.0,0.26231403]
[1643842557052,0.00076455,37020.0,37013.0,0.26231403]
[1643842557252,0.26291592,37023.0,37013.0,0.31564935]
[1643842557253,0.31291592,37023.0,37013.0,0.31564935]
[1643842557449,0.31291592,37023.0,37013.0,0.31641403]
[1643842557650,0.00076455,37020.0,37013.0,0.31641403]
[1643842557855,0.00088163,37020.0,37013.0,0.31641403]
[1643842558353,0.00088163,37020.0,37014.0,0.351135]
[1643842558726,0.00088163,37020.0,37015.0,0.0541]
[1643842558925,0.00088163,37020.0,37016.0,0.351135]
[1643842559224,0.28313392,37028.0,37016.0,0.351135]
[1643842559225,0.15052484,37029.0,37020.0,0.25]
[1643842559428,0.15052484,37029.0,37019.0,0.47933655]
[1643842559429,0.20052484,37029.0,37019.0,0.17933655]
[1643842559626,0.1,37029.0,37019.0,0.23343655]
[1643842559826,0.05,37029.0,37019.0,0.23343655]
[1643842560127,0.4748,37032.0,37019.0,0.23354486]
[1643842560330,0.05,37030.0,37020.0,0.32026736]
[1643842560531,0.05,37030.0,37021.0,0.0541]
[1643842560726,0.4748,37032.0,37021.0,0.0541]
[1643842561129,0.351135,37031.0,37021.0,0.0541]
[1643842561331,0.1,37031.0,37024.0,0.22498846]
[1643842561530,0.34202346,37036.0,37024.0,0.27908846]
[1643842561729,0.01946744,37037.0,37024.0,0.27908846]
[1643842561730,0.5,37035.0,37025.0,0.29838644]
[1643842561930,0.5,37035.0,37026.0,0.0541]
[1643842562133,0.51946744,37037.0,37027.0,0.0541]
[1643842562134,0.01946744,37037.0,37027.0,0.0541]
[1643842562328,0.00076436,37032.0,37028.0,0.0541]
[1643842562579,0.00076436,37032.0,37029.0,1.01868269]
[1643842562774,0.00076436,37032.0,37030.0,0.0541]
[1643842562976,4.36e-06,37032.0,37031.0,0.64952144]
[1643842563177,0.01663812,37040.0,37031.0,1.42982144]
[1643842563375,0.01663812,37040.0,37031.0,1.52982144]
[1643842563376,0.00563812,37040.0,37031.0,1.52982144]
[1643842563575,0.34422346,37054.0,37036.0,0.6762]
[1643842563775,0.0022,37054.0,37039.0,0.134952]
[1643842563977,0.0022,37054.0,37046.0,0.19807374]
[1643842564177,0.32642346,37057.0,37047.0,0.0541]
[1643842564378,0.01875832,37052.0,37047.0,0.0541]
[1643842565980,0.01875832,37052.0,37049.0,0.20244208]
[1643842566207,0.01875832,37052.0,37050.0,0.0541]
[1643842566412,0.01375832,37052.0,37050.0,0.0541]
[1643842566808,0.0011,37057.0,37050.0,0.0541]
[1643842567209,0.00076474,37053.0,37050.0,0.0541]
[1643842568012,0.00076474,37053.0,37051.0,0.351135]
[1643842568209,0.0011,37057.0,37051.0,0.351135]
[1643842568413,0.0011,37057.0,37050.0,0.0541]
[1643842568414,0.00076474,37053.0,37050.0,0.37052111]
[1643842568610,0.00076474,37053.0,37051.0,0.351135]
[1643842569212,0.0012,37059.0,37052.0,0.5470648]
[1643842569415,0.068581,37065.0,37052.0,0.5470648]
[1643842569416,0.39902737,37067.0,37053.0,0.601135]
[1643842569615,0.020794,37069.0,37054.0,0.3511648]
[1643842569811,0.020794,37069.0,37055.0,0.351135]
[1643842570065,0.020794,37069.0,37058.0,0.6762]
[1643842570066,0.01,37069.0,37058.0,0.6762]
[1643842570263,0.01,37069.0,37061.0,0.06744]
[1643842570465,0.01886257,37073.0,37063.0,0.25]
[1643842570668,0.01886257,37073.0,37064.0,0.41346757]
[1643842570864,0.01,37079.0,37066.0,0.25]
[1643842571072,0.01,37079.0,37072.0,0.0188]
[1643842571262,0.00028757,37087.0,37074.0,0.25]
[1643842571463,0.00028757,37087.0,37075.0,0.3511648]
[1643842571665,0.00028757,37087.0,37076.0,0.351135]
[1643842571864,0.00028757,37087.0,37077.0,0.0541]
[1643842572067,0.00076504,37083.0,37078.0,0.351135]
[1643842572266,0.00076504,37083.0,37079.0,0.31104777]
[1643842572464,0.00076504,37083.0,37080.0,0.351135]
[1643842572663,0.00076504,37083.0,37081.0,0.0541]
[1643842572863,0.00076504,37083.0,37082.0,0.851135]
[1643842573063,0.00028757,37087.0,37082.0,0.851135]
[1643842573064,0.00028757,37087.0,37082.0,0.905235]
[1643842573266,0.00076503,37084.0,37082.0,0.3166024]
[1643842573463,0.00076503,37084.0,37082.0,0.0666024]
[1643842573722,0.05076503,37084.0,37082.0,0.0541]
[1643842574117,0.00028757,37087.0,37082.0,0.02507953]
[1643842575919,0.33745743,37087.0,37082.0,0.02507953]
[1643842576117,0.25258757,37087.0,37082.0,0.04481986]
[1643842576323,0.30258757,37087.0,37082.0,0.04481986]
[1643842576721,0.00076434,37086.0,37082.0,0.04481986]
[1643842576920,0.00076434,37086.0,37078.0,0.25156304]
[1643842577464,0.13563134,37086.0,37078.0,0.25156304]
[1643842577865,0.134867,37086.0,37078.0,0.25156304]
[1643842579965,0.134867,37086.0,37074.0,0.01955827]
[1643842580365,0.134867,37086.0,37072.0,0.07434748]
[1643842580964,0.134867,37086.0,37078.0,0.22290642]
[1643842581213,0.16771757,37087.0,37078.0,0.22290642]
[1643842581512,0.00076405,37084.0,37078.0,0.22290642]
[1643842582307,0.00076405,37084.0,37072.0,0.07498816]
[1643842582509,0.06743549,37083.0,37072.0,0.07498816]
[1643842582708,0.00076409,37080.0,37072.0,0.07498816]
[1643842583307,0.00076409,37080.0,37074.0,0.26420273]
[1643842583709,0.06743549,37083.0,37072.0,0.07498816]
[1643842583909,0.06743549,37083.0,37072.0,0.02088816]
[1643842584113,0.0007641,37079.0,37072.0,0.02088816]
[1643842584310,0.0007641,37079.0,37068.0,0.07081344]
[1643842584512,0.0007641,37079.0,37069.0,0.350626]
[1643842584808,0.0007641,37079.0,37075.0,0.26266388]
[1643842585061,0.32105689,37082.0,37075.0,0.26266388]
[1643842585261,0.00076412,37076.0,37075.0,0.26266388]
[1643842585862,0.00076412,37076.0,37075.0,0.25893147]
[1643842586062,0.00076412,37076.0,37075.0,0.60955747]
[1643842586264,0.234862,37084.0,37075.0,0.60955747]
[1643842586468,0.00076411,37077.0,37075.0,0.25893147]
[1643842586666,0.00076411,37077.0,37076.0,0.850626]
[1643842586863,0.00076411,37077.0,37076.0,0.600626]
[1643842587264,0.00076411,37077.0,37076.0,0.350626]
[1643842587463,0.24634563,37083.0,37075.0,0.25893147]
[1643842587667,0.0007641,37078.0,37075.0,0.25893147]
[1643842588566,0.24634563,37083.0,37075.0,0.25893147]
[1643842588814,0.0007641,37078.0,37075.0,0.25893147]
[1643842589411,0.0007641,37078.0,37069.0,0.311336]
[1643842589611,0.0007641,37078.0,37070.0,0.350626]
[1643842589812,0.24634563,37083.0,37069.0,0.350626]
[1643842590013,0.24634563,37083.0,37068.0,0.05]
[1643842590014,0.00076413,37075.0,37068.0,0.05]
[1643842590214,0.00076413,37075.0,37069.0,0.350626]
[1643842590413,0.00076413,37075.0,37070.0,0.26738877]
[1643842590614,0.00076413,37075.0,37071.0,0.350626]
[1643842590915,0.24210448,37077.0,37071.0,0.350626]
[1643842591114,0.00076413,37075.0,37071.0,0.350626]
[1643842592117,0.117438,37080.0,37071.0,0.350626]
[1643842592324,0.00076413,37075.0,37070.0,0.26738877]
[1643842592560,0.00076413,37075.0,37071.0,0.350626]
[1643842593362,0.22259889,37078.0,37071.0,0.350626]
[1643842593561,0.00076413,37075.0,37071.0,0.350626]
[1643842593761,0.00076413,37075.0,37072.0,0.350626]
[1643842593962,0.00076413,37075.0,37070.0,0.26738877]
[1643842594266,0.00076413,37075.0,37071.0,0.350626]
[1643842595764,0.2210686,37078.0,37071.0,0.350626]
[1643842595965,0.00076413,37075.0,37071.0,0.350626]
[1643842597018,0.2210686,37078.0,37071.0,0.350626]
[1643842597212,0.00076413,37075.0,37071.0,0.350626]
[1643842598112,0.2210686,37078.0,37071.0,0.350626]
[1643842598512,0.00076413,37075.0,37071.0,0.350626]
[1643842599316,0.2210686,37078.0,37071.0,0.350626]
[1643842599513,0.2210686,37078.0,37070.0,0.26738877]
[1643842599715,0.00076413,37075.0,37070.0,0.26738877]
[1643842599960,0.00076413,37075.0,37071.0,0.350626]
[1643842600562,0.2210686,37078.0,37071.0,0.350626]
[1643842600762,0.00076413,37075.0,37070.0,0.26738877]
[1643842600964,0.00076413,37075.0,37071.0,0.350626]
[1643842601763,0.3214965,37077.0,37071.0,0.350626]
[1643842601968,0.00076413,37075.0,37070.0,0.26738877]
[1643842602164,0.00076413,37075.0,37071.0,0.350626]
[1643842602563,0.00076413,37075.0,37070.0,0.26738877]
[1643842602764,0.00076413,37075.0,37071.0,0.350626]
[1643842602967,0.06744,37077.0,37070.0,0.26738877]
[1643842603266,0.06744,37077.0,37066.0,0.25]
[1643842603267,0.00076414,37074.0,37066.0,0.25]
[1643842603467,0.00070414,37074.0,37066.0,0.25]
[1643842603710,0.00070414,37074.0,37067.0,0.350626]
[1643842603912,0.06815014,37074.0,37066.0,0.25]
[1643842604113,0.067446,37074.0,37066.0,0.25]
[1643842604415,0.067446,37074.0,37064.0,0.00823257]
[1643842604416,0.28620008,37073.0,37064.0,0.00823257]
[1643842604716,0.45366108,37073.0,37063.0,0.02122653]
[1643842604914,0.31874908,37073.0,37062.0,0.01809967]
[1643842605314,0.1,37073.0,37062.0,0.01809967]
[1643842605513,0.0541,37072.0,37062.0,0.01809967]
[1643842606314,0.0541,37072.0,37060.0,0.05]
[1643842606514,0.0541,37072.0,37063.0,0.25699441]
[1643842606515,0.20727979,37070.0,37063.0,0.25699441]
[1643842606715,0.30727979,37070.0,37062.0,0.067463]
[1643842607318,0.05,37069.0,37062.0,0.067463]
[1643842607760,0.0541,37072.0,37062.0,0.067463]
[1643842607761,0.1541,37072.0,37062.0,0.067463]
[1643842607960,0.00076425,37067.0,37062.0,0.067463]
[1643842609162,0.00076426,37066.0,37061.0,0.02176123]
[1643842610266,0.18683174,37069.0,37062.0,0.067462]
[1643842610463,0.00076426,37065.0,37062.0,0.21981526]
[1643842611312,0.45740391,37070.0,37062.0,0.21981526]
[1643842611513,0.45740391,37070.0,37061.0,0.01842281]
[1643842611514,0.00076426,37065.0,37061.0,0.01842281]
[1643842612512,0.45740391,37070.0,37061.0,0.01842281]
[1643842612914,0.00076427,37065.0,37061.0,0.01842281]
[1643842613114,0.00076427,37065.0,37060.0,0.22714863]
[1643842613714,0.45740391,37070.0,37060.0,0.22714863]
[1643842613915,0.00076427,37064.0,37060.0,0.22714863]
[1643842614116,0.00076427,37064.0,37060.0,0.24852285]
[1643842615061,0.7992085,37070.0,37060.0,0.24852285]
[1643842615272,0.00076428,37064.0,37060.0,0.02137422]
[1643842616162,0.7992085,37070.0,37060.0,0.02137422]
[1643842616362,0.00076428,37064.0,37060.0,0.20615496]
[1643842617464,0.45740391,37070.0,37060.0,0.20615496]
[1643842617666,0.00076428,37064.0,37060.0,0.20615496]
[1643842617868,0.00076428,37064.0,37061.0,0.350626]
[1643842618064,0.00076428,37064.0,37060.0,0.20615496]
[1643842618464,0.00076428,37064.0,37061.0,0.350626]
[1643842619115,0.00076428,37064.0,37060.0,0.20615496]
[1643842619719,0.45740391,37070.0,37060.0,0.20615496]
[1643842619921,0.00076428,37064.0,37060.0,0.20615496]
[1643842620919,0.45740391,37070.0,37060.0,0.20615496]
[1643842621121,0.00076428,37064.0,37060.0,0.20615496]
[1643842621519,0.00076428,37064.0,37061.0,0.067463]
[1643842622119,0.45740391,37070.0,37061.0,0.067463]
[1643842622319,0.00076427,37064.0,37061.0,0.067463]
[1643842623366,0.45740391,37070.0,37061.0,0.067463]
[1643842623565,0.00076427,37064.0,37061.0,0.067463]
[1643842624666,0.45740391,37070.0,37061.0,0.067463]
[1643842624866,0.00076427,37064.0,37061.0,0.067463]
[1643842625670,0.00076427,37064.0,37060.0,0.20615496]
[1643842625868,0.46046055,37070.0,37058.0,0.14316015]
[1643842625869,0.45740391,37070.0,37058.0,0.14316015]
[1643842626068,0.00076427,37064.0,37061.0,0.067465]
[1643842626317,0.00076427,37064.0,37058.0,0.134925]
[1643842626912,0.0541,37068.0,37059.0,0.19741957]
[1643842627115,0.0541,37068.0,37058.0,0.134925]
[1643842627311,0.00076428,37063.0,37058.0,0.134925]
[1643842628111,0.19614446,37065.0,37058.0,0.34955612]
[1643842628512,0.00076428,37063.0,37058.0,0.34955612]
[1643842629314,0.24614446,37065.0,37058.0,0.34955612]
[1643842629514,0.00076428,37063.0,37058.0,0.01955752]
[1643842630181,0.00076428,37063.0,37058.0,0.04094877]
[1643842630480,0.29614446,37065.0,37058.0,0.04094877]
[1643842630884,0.00076428,37063.0,37058.0,0.04094877]
[1643842631082,0.00076428,37063.0,37057.0,0.74384932]
[1643842631680,0.29614446,37065.0,37057.0,0.936713]
[1643842632082,0.00076427,37063.0,37057.0,0.936713]
[1643842632282,0.00076427,37063.0,37057.0,0.95605368]
[1643842632482,0.00076427,37063.0,37058.0,0.350626]
[1643842632684,0.00076427,37063.0,37057.0,0.95605368]
[1643842632883,0.29614446,37065.0,37057.0,0.95605368]
[1643842633284,0.00076427,37063.0,37057.0,0.95605368]
[1643842633486,0.00076427,37063.0,37059.0,0.05]
[1643842633710,0.00076427,37063.0,37057.0,0.95605368]
[1643842634112,0.29614446,37065.0,37057.0,0.95605368]
[1643842634312,0.29614446,37065.0,37058.0,0.01966447]
[1643842634514,0.00076427,37063.0,37058.0,0.01966447]
[1643842635316,0.29614446,37065.0,37058.0,0.01966447]
[1643842635514,0.00076428,37063.0,37058.0,0.01966447]